[Event "*** Titled Tuesday Blitz"]
[Site "Chess.com"]
[Date "2020.04.14"]
[Round "6"]
[White "Budisavljevic"]
[Black "Bagirova"]
[Result "1-0"]
[WhiteElo "2420"]
[BlackElo "2211"]
[TimeControl "180+1"]
[EndTime "11:04:53 PDT"]
[Termination "Budisavljevic won on time"]

1. d4 {[%clk 0:03:00.9]} 1... Nf6 {[%clk 0:02:54.2]} 2. Nf3 {[%clk 0:02:53.4]}
2... g6 {[%clk 0:02:52.5]} 3. Bf4 {[%clk 0:02:50.5]} 3... Bg7 {[%clk 0:02:51]}
4. e3 {[%clk 0:02:50.4]} 4... O-O {[%clk 0:02:51.2]} 5. Be2 {[%clk 0:02:49.8]}
5... d6 {[%clk 0:02:48.5]} 6. h3 {[%clk 0:02:49.2]} 6... Nbd7 {[%clk 0:02:46.8]}
7. c4 {[%clk 0:02:44.4]} 7... c5 {[%clk 0:02:44.9]} 8. Nc3 {[%clk 0:02:43]} 8...
a6 {[%clk 0:02:42]} 9. O-O {[%clk 0:02:42]} 9... Re8 {[%clk 0:02:27.1]} 10. d5
{[%clk 0:02:38.4]} 10... Rb8 {[%clk 0:02:19.8]} 11. a4 {[%clk 0:02:36.6]} 11...
Nf8 {[%clk 0:02:18.3]} 12. e4 {[%clk 0:02:34.9]} 12... h6 {[%clk 0:02:17.3]} 13.
Qd2 {[%clk 0:02:30.9]} 13... g5 {[%clk 0:02:14.5]} 14. Bh2 {[%clk 0:02:26.9]}
14... Ng6 {[%clk 0:02:14.5]} 15. e5 {[%clk 0:02:14.8]} 15... Nh7 {[%clk
0:02:02.1]} 16. Bd3 {[%clk 0:01:37.7]} 16... Nxe5 {[%clk 0:01:50.2]} 17. Nxe5
{[%clk 0:01:31.6]} 17... dxe5 {[%clk 0:01:49.3]} 18. Qe3 {[%clk 0:01:29.9]}
18... Qc7 {[%clk 0:01:36.5]} 19. Rfe1 {[%clk 0:01:27.2]} 19... f6 {[%clk
0:01:28.5]} 20. Ne4 {[%clk 0:01:04.1]} 20... b6 {[%clk 0:01:23.7]} 21. a5 {[%clk
0:01:03.3]} 21... f5 {[%clk 0:01:13.4]} 22. axb6 {[%clk 0:01:00.2]} 22... Qxb6
{[%clk 0:01:10.6]} 23. Nxc5 {[%clk 0:00:51]} 23... f4 {[%clk 0:01:08.2]} 24.
Bxh7+ {[%clk 0:00:47.8]} 24... Kxh7 {[%clk 0:00:50]} 25. Qd3+ {[%clk 0:00:47.2]}
25... Kh8 {[%clk 0:00:48.5]} 26. Na4 {[%clk 0:00:38.4]} 26... Qb3 {[%clk
0:00:38.6]} 27. Qg6 {[%clk 0:00:32.7]} 27... Bxh3 {[%clk 0:00:30.6]} 28. Ra3
{[%clk 0:00:20.6]} 28... Qb4 {[%clk 0:00:24.1]} 29. Rea1 {[%clk 0:00:17.3]}
29... Bg4 {[%clk 0:00:19.3]} 30. f3 {[%clk 0:00:14.3]} 30... Bd7 {[%clk
0:00:16.9]} 31. Kh1 {[%clk 0:00:13.2]} 31... Bxa4 {[%clk 0:00:16.2]} 32. Rxa4
{[%clk 0:00:14.1]} 32... Qxb2 {[%clk 0:00:16.3]} 33. Rxa6 {[%clk 0:00:13.4]}
33... Qc3 {[%clk 0:00:13.6]} 34. Bg1 {[%clk 0:00:07.3]} 34... Rf8 {[%clk
0:00:11.6]} 35. Ra7 {[%clk 0:00:05.3]} 35... Rf6 {[%clk 0:00:08.8]} 36. Qe4
{[%clk 0:00:04.8]} 36... Rb2 {[%clk 0:00:04.7]} 37. Ra8+ {[%clk 0:00:03.7]}
37... Bf8 {[%clk 0:00:04.9]} 38. Rd1 {[%clk 0:00:02]} 38... Qc2 {[%clk
0:00:03.3]} 39. Qxc2 {[%clk 0:00:01.1]} 39... Rxc2 {[%clk 0:00:03.6]} 40. Rb1
{[%clk 0:00:02]} 40... Rxc4 {[%clk 0:00:03.8]} 41. Rbb8 {[%clk 0:00:02.9]} 41...
Kg7 {[%clk 0:00:03.9]} 42. Bb6 {[%clk 0:00:02.6]} 42... Rc1+ {[%clk 0:00:03.6]}
43. Bg1 {[%clk 0:00:03.5]} 43... Rc2 {[%clk 0:00:01.9]} 44. Rd8 {[%clk
0:00:03.4]} 44... Rc1 {[%clk 0:00:02.1]} 45. Ra7 {[%clk 0:00:03.1]} 45... Rd1
{[%clk 0:00:03]} 46. Kh2 {[%clk 0:00:03]} 46... Rc1 {[%clk 0:00:03]} 47. Bc5
{[%clk 0:00:02.9]} 47... e4 {[%clk 0:00:02.9]} 48. Bxe7 {[%clk 0:00:01.9]} 48...
Bxe7 {[%clk 0:00:03.3]} 49. Rxe7+ {[%clk 0:00:02.8]} 49... Rf7 {[%clk
0:00:03.7]} 50. Rxf7+ {[%clk 0:00:02.4]} 50... Kxf7 {[%clk 0:00:03.2]} 51. fxe4
{[%clk 0:00:03.3]} 51... Re1 {[%clk 0:00:01.9]} 52. Rd6 {[%clk 0:00:01.9]} 52...
Rxe4 {[%clk 0:00:02]} 53. Rxh6 {[%clk 0:00:02.2]} 53... Rd4 {[%clk 0:00:02.4]}
54. d6 {[%clk 0:00:02.1]} 1-0

[Event "*** Titled Tuesday Blitz"]
[Site "Chess.com"]
[Date "2020.04.14"]
[Round "6"]
[White "Nikolaj_6"]
[Black "freshfoodcompany"]
[Result "0-1"]
[WhiteElo "2569"]
[BlackElo "2235"]
[TimeControl "180+1"]
[EndTime "11:04:57 PDT"]
[Termination "freshfoodcompany won by resignation"]

1. e4 {[%clk 0:03:00.9]} 1... c5 {[%clk 0:03:00.1]} 2. Nf3 {[%clk 0:03:00.8]}
2... Nc6 {[%clk 0:03:00.4]} 3. d4 {[%clk 0:03:01.2]} 3... cxd4 {[%clk
0:03:00.9]} 4. Nxd4 {[%clk 0:03:01.7]} 4... Nf6 {[%clk 0:03:01.3]} 5. Nc3 {[%clk
0:03:01.3]} 5... e5 {[%clk 0:03:01.8]} 6. Ndb5 {[%clk 0:03:01.3]} 6... d6 {[%clk
0:03:02.2]} 7. Nd5 {[%clk 0:03:01.4]} 7... Nxd5 {[%clk 0:03:01.3]} 8. exd5
{[%clk 0:03:02]} 8... Nb8 {[%clk 0:03:01.4]} 9. a4 {[%clk 0:03:01.8]} 9... Be7
{[%clk 0:02:59.1]} 10. Be2 {[%clk 0:03:01.5]} 10... O-O {[%clk 0:02:57.1]} 11.
O-O {[%clk 0:03:01.3]} 11... a6 {[%clk 0:02:57.1]} 12. Na3 {[%clk 0:03:00.7]}
12... Nd7 {[%clk 0:02:56.2]} 13. Kh1 {[%clk 0:02:58.5]} 13... f5 {[%clk
0:02:54.6]} 14. f4 {[%clk 0:02:57.8]} 14... Bf6 {[%clk 0:02:43.1]} 15. Nc4
{[%clk 0:02:55]} 15... Qc7 {[%clk 0:02:36]} 16. a5 {[%clk 0:02:49.8]} 16... exf4
{[%clk 0:02:29.3]} 17. Bxf4 {[%clk 0:02:46.6]} 17... Ne5 {[%clk 0:02:28.4]} 18.
Bxe5 {[%clk 0:02:44.2]} 18... Bxe5 {[%clk 0:02:21.9]} 19. c3 {[%clk 0:02:40.2]}
19... Qe7 {[%clk 0:02:04.1]} 20. Qd3 {[%clk 0:02:27.4]} 20... Qh4 {[%clk
0:01:56.3]} 21. g3 {[%clk 0:02:18.8]} 21... Qh3 {[%clk 0:01:45.1]} 22. Nxe5
{[%clk 0:02:15.1]} 22... dxe5 {[%clk 0:01:43.4]} 23. d6 {[%clk 0:02:15.3]} 23...
Be6 {[%clk 0:01:37.3]} 24. Rad1 {[%clk 0:02:14.6]} 24... Rad8 {[%clk 0:01:34.4]}
25. Qe3 {[%clk 0:02:14.2]} 25... Rfe8 {[%clk 0:01:23.8]} 26. Qc5 {[%clk
0:01:58.9]} 26... Bf7 {[%clk 0:00:58.8]} 27. Bc4 {[%clk 0:01:54.6]} 27... Qh5
{[%clk 0:00:47.3]} 28. d7 {[%clk 0:01:46]} 28... Rf8 {[%clk 0:00:39.8]} 29.
Bxf7+ {[%clk 0:01:43.8]} 29... Qxf7 {[%clk 0:00:39.4]} 30. Qd6 {[%clk
0:01:33.5]} 30... e4 {[%clk 0:00:35.7]} 31. Rd5 {[%clk 0:01:31.6]} 31... Qg6
{[%clk 0:00:19.4]} 32. Qf4 {[%clk 0:01:23.3]} 32... Qe6 {[%clk 0:00:18.5]} 33.
Rd6 {[%clk 0:01:19.2]} 33... Qe7 {[%clk 0:00:17.2]} 34. Rfd1 {[%clk 0:01:18.6]}
34... e3 {[%clk 0:00:17.1]} 35. R6d3 {[%clk 0:01:03.6]} 35... e2 {[%clk
0:00:16.8]} 36. Re1 {[%clk 0:01:03.7]} 36... Rxd7 {[%clk 0:00:17]} 37. Qc4+
{[%clk 0:01:00.2]} 37... Kh8 {[%clk 0:00:16.4]} 38. Rxd7 {[%clk 0:00:59]} 38...
Qxd7 {[%clk 0:00:16.6]} 39. Rxe2 {[%clk 0:00:58.3]} 39... Qd1+ {[%clk
0:00:16.3]} 40. Kg2 {[%clk 0:00:58.1]} 40... Qd7 {[%clk 0:00:16.1]} 41. b4
{[%clk 0:00:56.2]} 41... h6 {[%clk 0:00:15.7]} 42. Qd4 {[%clk 0:00:54.8]} 42...
Qxd4 {[%clk 0:00:15.1]} 43. cxd4 {[%clk 0:00:54.3]} 43... Rd8 {[%clk 0:00:15]}
44. Rd2 {[%clk 0:00:54.5]} 44... Kh7 {[%clk 0:00:15.4]} 45. Kf3 {[%clk
0:00:53.8]} 45... Kg6 {[%clk 0:00:15.9]} 46. g4 {[%clk 0:00:51.6]} 46... fxg4+
{[%clk 0:00:14.7]} 47. Kxg4 {[%clk 0:00:52.2]} 47... Kf6 {[%clk 0:00:14.5]} 48.
Kf4 {[%clk 0:00:52.7]} 48... g5+ {[%clk 0:00:14.1]} 49. Ke4 {[%clk 0:00:53]}
49... Ke6 {[%clk 0:00:13.9]} 50. d5+ {[%clk 0:00:53.1]} 50... Kf6 {[%clk
0:00:13.9]} 51. Rf2+ {[%clk 0:00:52.4]} 51... Ke7 {[%clk 0:00:14.1]} 52. Ke5
{[%clk 0:00:52.4]} 52... Rd6 {[%clk 0:00:13.7]} 53. Rc2 {[%clk 0:00:49.9]} 53...
Rd7 {[%clk 0:00:13.3]} 54. Rc8 {[%clk 0:00:47.4]} 54... h5 {[%clk 0:00:13.3]}
55. Rh8 {[%clk 0:00:46.7]} 55... h4 {[%clk 0:00:13.5]} 56. Rh7+ {[%clk
0:00:46.7]} 56... Kd8 {[%clk 0:00:13]} 57. Rh8+ {[%clk 0:00:46]} 57... Kc7
{[%clk 0:00:12.8]} 58. Rh5 {[%clk 0:00:45.7]} 58... Rg7 {[%clk 0:00:12]} 59. Kf5
{[%clk 0:00:44.9]} 59... Rd7 {[%clk 0:00:11.5]} 60. Ke6 {[%clk 0:00:42.6]} 60...
Rd6+ {[%clk 0:00:11.5]} 61. Ke5 {[%clk 0:00:42.6]} 61... Rg6 {[%clk 0:00:11.5]}
62. h3 {[%clk 0:00:42.9]} 62... Rg7 {[%clk 0:00:11.1]} 63. Rh6 {[%clk
0:00:39.9]} 63... g4 {[%clk 0:00:10.6]} 64. hxg4 {[%clk 0:00:39.8]} 64... Rxg4
{[%clk 0:00:10.8]} 65. Rh7+ {[%clk 0:00:40]} 65... Kc8 {[%clk 0:00:11.1]} 66.
Kd6 {[%clk 0:00:38]} 66... Rg6+ {[%clk 0:00:10.9]} 67. Kc5 {[%clk 0:00:38.1]}
67... Rg4 {[%clk 0:00:09.5]} 68. d6 {[%clk 0:00:33.8]} 68... Rg5+ {[%clk
0:00:08.8]} 69. Kc4 {[%clk 0:00:32.8]} 69... Rg4+ {[%clk 0:00:09]} 70. Kb3
{[%clk 0:00:32.4]} 70... Rg3+ {[%clk 0:00:09.2]} 71. Kc4 {[%clk 0:00:31.9]}
71... Rg4+ {[%clk 0:00:08.6]} 72. Kc5 {[%clk 0:00:32.1]} 72... Rg5+ {[%clk
0:00:08.7]} 73. Kb6 {[%clk 0:00:31.6]} 73... Rb5+ {[%clk 0:00:08.8]} 74. Ka7
{[%clk 0:00:32.1]} 74... Rxb4 {[%clk 0:00:09.1]} 75. Rxh4 {[%clk 0:00:31.1]}
75... Rxh4 {[%clk 0:00:08.7]} 76. Kb6 {[%clk 0:00:30.4]} 76... Rb4+ {[%clk
0:00:08.1]} 77. Kc5 {[%clk 0:00:30.6]} 77... Rb5+ {[%clk 0:00:08.5]} 78. Kc4
{[%clk 0:00:31]} 78... Rxa5 {[%clk 0:00:09]} 0-1

[Event "*** Titled Tuesday Blitz"]
[Site "Chess.com"]
[Date "2020.04.14"]
[Round "6"]
[White "gena217"]
[Black "kaumandur01"]
[Result "1/2-1/2"]
[WhiteElo "2915"]
[BlackElo "2808"]
[TimeControl "180+1"]
[EndTime "11:04:58 PDT"]
[Termination "Game drawn by repetition"]

1. e4 {[%clk 0:03:00.9]} 1... c5 {[%clk 0:02:58.6]} 2. Nf3 {[%clk 0:03:01.2]}
2... d6 {[%clk 0:02:59.2]} 3. Bb5+ {[%clk 0:03:00.7]} 3... Nd7 {[%clk
0:02:58.8]} 4. d4 {[%clk 0:02:59.9]} 4... cxd4 {[%clk 0:02:58.2]} 5. Qxd4 {[%clk
0:03:00.8]} 5... a6 {[%clk 0:02:58.1]} 6. Be2 {[%clk 0:03:00.9]} 6... Ngf6
{[%clk 0:02:57.3]} 7. O-O {[%clk 0:03:00.7]} 7... g6 {[%clk 0:02:53.8]} 8. c4
{[%clk 0:02:56.1]} 8... Bg7 {[%clk 0:02:54.2]} 9. h3 {[%clk 0:02:54.8]} 9... O-O
{[%clk 0:02:54.7]} 10. Qe3 {[%clk 0:02:55.1]} 10... b6 {[%clk 0:02:46.2]} 11.
Nc3 {[%clk 0:02:54.6]} 11... Bb7 {[%clk 0:02:46.6]} 12. Rd1 {[%clk 0:02:51.5]}
12... Qc7 {[%clk 0:02:38.8]} 13. Rb1 {[%clk 0:02:47.3]} 13... Rfc8 {[%clk
0:02:34]} 14. a4 {[%clk 0:02:32.1]} 14... Qc5 {[%clk 0:01:55.5]} 15. Qd3 {[%clk
0:02:17.5]} 15... Qb4 {[%clk 0:01:40.5]} 16. Qc2 {[%clk 0:01:43.6]} 16... Nc5
{[%clk 0:01:21.5]} 17. Nd2 {[%clk 0:01:41.9]} 17... b5 {[%clk 0:00:44.6]} 18.
axb5 {[%clk 0:01:16.5]} 18... axb5 {[%clk 0:00:44.3]} 19. b3 {[%clk 0:01:14]}
19... bxc4 {[%clk 0:00:37.3]} 20. bxc4 {[%clk 0:01:03.4]} 20... Qa5 {[%clk
0:00:37.5]} 21. Bb2 {[%clk 0:00:58.2]} 21... Rab8 {[%clk 0:00:32.3]} 22. Ra1
{[%clk 0:00:49.1]} 22... Qc7 {[%clk 0:00:32.2]} 23. Rdb1 {[%clk 0:00:46.1]}
23... Nfxe4 {[%clk 0:00:18.1]} 24. Ncxe4 {[%clk 0:00:42.1]} 24... Nxe4 {[%clk
0:00:18.2]} 25. Bxg7 {[%clk 0:00:18.6]} 25... Nxd2 {[%clk 0:00:17.8]} 26. Qxd2
{[%clk 0:00:19.5]} 26... Kxg7 {[%clk 0:00:18.3]} 27. Ra7 {[%clk 0:00:19.8]}
27... Bc6 {[%clk 0:00:07]} 28. Qd4+ {[%clk 0:00:10.6]} 28... e5 {[%clk
0:00:06.8]} 29. Rxb8 {[%clk 0:00:09.1]} 29... exd4 {[%clk 0:00:04.6]} 30. Rxc7
{[%clk 0:00:08.8]} 30... Rxc7 {[%clk 0:00:05.5]} 31. Rd8 {[%clk 0:00:09.5]}
31... Re7 {[%clk 0:00:05.7]} 32. Rxd6 {[%clk 0:00:07.9]} 32... Rxe2 {[%clk
0:00:05.6]} 33. Rxc6 {[%clk 0:00:08.3]} 33... d3 {[%clk 0:00:06.4]} 34. Rd6
{[%clk 0:00:08.9]} 34... d2 {[%clk 0:00:06.9]} 35. Kh2 {[%clk 0:00:09.4]} 35...
Rxf2 {[%clk 0:00:07.3]} 36. c5 {[%clk 0:00:09.9]} 36... Rf5 {[%clk 0:00:07.9]}
37. Rxd2 {[%clk 0:00:09.3]} 37... Rxc5 {[%clk 0:00:08.5]} 38. h4 {[%clk
0:00:09.3]} 38... h5 {[%clk 0:00:08.9]} 39. g3 {[%clk 0:00:09.7]} 39... Kf6
{[%clk 0:00:08.6]} 40. Kg2 {[%clk 0:00:10]} 40... Rf5 {[%clk 0:00:09.5]} 41.
Rd6+ {[%clk 0:00:10]} 41... Kg7 {[%clk 0:00:10.4]} 42. Rd2 {[%clk 0:00:10.6]}
42... Rf6 {[%clk 0:00:11.2]} 43. Re2 {[%clk 0:00:11]} 43... Re6 {[%clk
0:00:12.1]} 44. Rc2 {[%clk 0:00:11.4]} 44... Rd6 {[%clk 0:00:12.3]} 45. Rb2
{[%clk 0:00:11.7]} 45... Kf6 {[%clk 0:00:12.8]} 46. Rf2+ {[%clk 0:00:11.8]}
46... Ke6 {[%clk 0:00:13.7]} 47. Ra2 {[%clk 0:00:12.7]} 47... Kf6 {[%clk
0:00:14]} 48. Rf2+ {[%clk 0:00:13.1]} 48... Ke6 {[%clk 0:00:14.9]} 49. Ra2
{[%clk 0:00:13.7]} 49... Rd5 {[%clk 0:00:15.8]} 50. Re2+ {[%clk 0:00:14]} 50...
Kf5 {[%clk 0:00:16.2]} 51. Rf2+ {[%clk 0:00:14.2]} 51... Ke6 {[%clk 0:00:16.7]}
52. Re2+ {[%clk 0:00:14.8]} 52... Re5 {[%clk 0:00:17.5]} 53. Ra2 {[%clk
0:00:15.5]} 53... f6 {[%clk 0:00:17.9]} 54. Ra6+ {[%clk 0:00:15.3]} 54... Kf5
{[%clk 0:00:18.6]} 55. Ra2 {[%clk 0:00:15.9]} 55... Rc5 {[%clk 0:00:19.2]} 56.
Rf2+ {[%clk 0:00:15.2]} 56... Ke5 {[%clk 0:00:19.9]} 57. Re2+ {[%clk 0:00:15.7]}
57... Kd6 {[%clk 0:00:20.2]} 58. Rd2+ {[%clk 0:00:15.9]} 58... Rd5 {[%clk
0:00:20.5]} 59. Re2 {[%clk 0:00:16.6]} 59... Re5 {[%clk 0:00:20.3]} 60. Rd2+
{[%clk 0:00:16.5]} 60... Ke6 {[%clk 0:00:20.9]} 61. Ra2 {[%clk 0:00:17.2]} 61...
Re4 {[%clk 0:00:21.1]} 62. Ra5 {[%clk 0:00:15.6]} 62... Re5 {[%clk 0:00:20.5]}
63. Ra2 {[%clk 0:00:15.2]} 63... Rd5 {[%clk 0:00:20.6]} 64. Re2+ {[%clk
0:00:15]} 64... Kf5 {[%clk 0:00:20.6]} 65. Rf2+ {[%clk 0:00:15.2]} 65... Ke5
{[%clk 0:00:21.2]} 66. Re2+ {[%clk 0:00:15.6]} 66... Kd4 {[%clk 0:00:21.8]} 67.
Re6 {[%clk 0:00:15.5]} 67... Rf5 {[%clk 0:00:22]} 68. Re8 {[%clk 0:00:15.4]}
68... Kd5 {[%clk 0:00:22.1]} 69. Re2 {[%clk 0:00:12.7]} 69... Kd4 {[%clk
0:00:21.8]} 70. Re8 {[%clk 0:00:12.8]} 70... Kd5 {[%clk 0:00:21.9]} 71. Re2
{[%clk 0:00:12.9]} 71... Re5 {[%clk 0:00:22.3]} 72. Rd2+ {[%clk 0:00:12.6]}
72... Ke6 {[%clk 0:00:22.6]} 73. Ra2 {[%clk 0:00:13.3]} 1/2-1/2

[Event "*** Titled Tuesday Blitz"]
[Site "Chess.com"]
[Date "2020.04.14"]
[Round "6"]
[White "YQPerez"]
[Black "LionTheLeon_06"]
[Result "1-0"]
[WhiteElo "2968"]
[BlackElo "2667"]
[TimeControl "180+1"]
[EndTime "11:05:01 PDT"]
[Termination "YQPerez won by checkmate"]

1. e4 {[%clk 0:03:00.9]} 1... c5 {[%clk 0:02:59.3]} 2. c3 {[%clk 0:03:00.7]}
2... Nf6 {[%clk 0:02:57.5]} 3. e5 {[%clk 0:03:00.8]} 3... Nd5 {[%clk 0:02:58.1]}
4. Nf3 {[%clk 0:03:00.8]} 4... d6 {[%clk 0:02:56.9]} 5. Bc4 {[%clk 0:03:00]}
5... Nb6 {[%clk 0:02:53]} 6. Bb3 {[%clk 0:03:00.4]} 6... c4 {[%clk 0:02:52.1]}
7. Bc2 {[%clk 0:03:00.4]} 7... Nc6 {[%clk 0:02:50.2]} 8. exd6 {[%clk 0:03:00.7]}
8... Qxd6 {[%clk 0:02:50.4]} 9. O-O {[%clk 0:03:00.8]} 9... Bg4 {[%clk
0:02:48.7]} 10. h3 {[%clk 0:02:59.9]} 10... Bh5 {[%clk 0:02:47.8]} 11. Re1
{[%clk 0:02:59.9]} 11... e6 {[%clk 0:02:47.8]} 12. b3 {[%clk 0:02:54.2]} 12...
Be7 {[%clk 0:02:44.6]} 13. Na3 {[%clk 0:02:51.5]} 13... cxb3 {[%clk 0:02:38.2]}
14. axb3 {[%clk 0:02:52.4]} 14... O-O {[%clk 0:02:36.7]} 15. d4 {[%clk
0:02:50.4]} 15... Rfd8 {[%clk 0:02:31.5]} 16. Nc4 {[%clk 0:02:34.3]} 16... Nxc4
{[%clk 0:02:25.1]} 17. bxc4 {[%clk 0:02:34.6]} 17... Bf6 {[%clk 0:02:23.1]} 18.
Be3 {[%clk 0:02:15.9]} 18... b6 {[%clk 0:02:19.5]} 19. Be4 {[%clk 0:01:53.8]}
19... Bg6 {[%clk 0:02:11.2]} 20. Nd2 {[%clk 0:01:45.7]} 20... Rac8 {[%clk
0:01:59.6]} 21. Bxg6 {[%clk 0:01:40.2]} 21... hxg6 {[%clk 0:01:58.8]} 22. Ne4
{[%clk 0:01:40.2]} 22... Qe7 {[%clk 0:01:57.1]} 23. Qf3 {[%clk 0:01:29.2]} 23...
Na5 {[%clk 0:01:52.9]} 24. c5 {[%clk 0:01:25.8]} 24... Nc4 {[%clk 0:01:43.5]}
25. Bf4 {[%clk 0:01:26.1]} 25... bxc5 {[%clk 0:01:34.2]} 26. Nxc5 {[%clk
0:01:27]} 26... Nb6 {[%clk 0:01:23.4]} 27. Ra6 {[%clk 0:01:22.5]} 27... Nd5
{[%clk 0:01:21.5]} 28. Bd2 {[%clk 0:01:20.2]} 28... Rd6 {[%clk 0:01:18.2]} 29.
Ra2 {[%clk 0:01:15.1]} 29... Rdc6 {[%clk 0:01:15.3]} 30. Rea1 {[%clk 0:01:10.2]}
30... R6c7 {[%clk 0:01:14.9]} 31. Ra6 {[%clk 0:01:06.8]} 31... Nb6 {[%clk
0:01:13.1]} 32. Bf4 {[%clk 0:01:00.7]} 32... Rxc5 {[%clk 0:01:09.4]} 33. dxc5
{[%clk 0:00:58.9]} 33... Qxc5 {[%clk 0:01:08.2]} 34. Rxa7 {[%clk 0:00:56.4]}
34... Nd5 {[%clk 0:01:02]} 35. Bd2 {[%clk 0:00:56.5]} 35... Nxc3 {[%clk
0:01:00.7]} 36. Bxc3 {[%clk 0:00:55.2]} 36... Qxc3 {[%clk 0:00:59.9]} 37. Qxc3
{[%clk 0:00:52.9]} 37... Rxc3 {[%clk 0:00:58.3]} 38. Rd7 {[%clk 0:00:50.7]}
38... Be5 {[%clk 0:00:52.4]} 39. Ra8+ {[%clk 0:00:39.5]} 39... Kh7 {[%clk
0:00:52.3]} 40. g3 {[%clk 0:00:39.7]} 40... f5 {[%clk 0:00:49.3]} 41. Ra6 {[%clk
0:00:37.4]} 41... g5 {[%clk 0:00:44.9]} 42. Rxe6 {[%clk 0:00:36.1]} 42... Rc1+
{[%clk 0:00:40.5]} 43. Kg2 {[%clk 0:00:35.9]} 43... Ba1 {[%clk 0:00:40.3]} 44.
Rd5 {[%clk 0:00:33.7]} 44... f4 {[%clk 0:00:37.5]} 45. Rxg5 {[%clk 0:00:33.5]}
45... fxg3 {[%clk 0:00:37]} 46. fxg3 {[%clk 0:00:30.6]} 46... Rc2+ {[%clk
0:00:37.4]} 47. Kf3 {[%clk 0:00:30.3]} 47... Rc3+ {[%clk 0:00:37.2]} 48. Re3
{[%clk 0:00:29.7]} 48... Rc1 {[%clk 0:00:37.4]} 49. Rh5+ {[%clk 0:00:24.4]}
49... Kg6 {[%clk 0:00:37.1]} 50. g4 {[%clk 0:00:24.6]} 50... Bf6 {[%clk
0:00:37.6]} 51. Rb5 {[%clk 0:00:21.8]} 51... Rf1+ {[%clk 0:00:37.5]} 52. Kg2
{[%clk 0:00:21.6]} 52... Rc1 {[%clk 0:00:37.1]} 53. Re2 {[%clk 0:00:21.3]} 53...
Kh7 {[%clk 0:00:36.7]} 54. h4 {[%clk 0:00:20.6]} 54... Bd4 {[%clk 0:00:34.1]}
55. g5 {[%clk 0:00:19]} 55... Kg6 {[%clk 0:00:33.7]} 56. Re4 {[%clk 0:00:14.9]}
56... Ba1 {[%clk 0:00:31.9]} 57. Kh3 {[%clk 0:00:14.2]} 57... Kh5 {[%clk
0:00:30.7]} 58. Rb8 {[%clk 0:00:12.8]} 58... Rc3+ {[%clk 0:00:30.2]} 59. Kg2
{[%clk 0:00:12.8]} 59... Rc2+ {[%clk 0:00:30.2]} 60. Kf3 {[%clk 0:00:12.7]}
60... Rc3+ {[%clk 0:00:30.2]} 61. Kf4 {[%clk 0:00:12.3]} 61... Kg6 {[%clk
0:00:23.3]} 62. Rh8 {[%clk 0:00:11.6]} 62... Rc6 {[%clk 0:00:21.5]} 63. Kg4
{[%clk 0:00:11.2]} 63... Kf7 {[%clk 0:00:20.6]} 64. h5 {[%clk 0:00:09.7]} 64...
Re6 {[%clk 0:00:19.9]} 65. Rxe6 {[%clk 0:00:09.4]} 65... Kxe6 {[%clk 0:00:20.8]}
66. Ra8 {[%clk 0:00:09.6]} 66... Kf7 {[%clk 0:00:21]} 67. Rxa1 {[%clk 0:00:09]}
67... Kg8 {[%clk 0:00:21.5]} 68. Ra7 {[%clk 0:00:09.4]} 68... Kh8 {[%clk
0:00:21.8]} 69. Kf5 {[%clk 0:00:09.6]} 69... Kh7 {[%clk 0:00:22.2]} 70. g6+
{[%clk 0:00:08.7]} 70... Kh6 {[%clk 0:00:22.7]} 71. Ra8 {[%clk 0:00:09.2]} 71...
Kxh5 {[%clk 0:00:23.4]} 72. Rh8# {[%clk 0:00:10]} 1-0